bitfinex-derivatives/quotes_BTCF0:USTF0_20251023
["timestamp","ask_amount","ask_price","bid_price","bid_amount"]
[1761181934124,0.20473,108270.0,108260.0,0.04369]
[1761181934314,0.20473,108270.0,108250.0,0.1494637]
[1761181934315,0.05729,108260.0,108250.0,0.1494637]
[1761181934919,0.05729,108260.0,108250.0,0.17263936]
[1761181935316,0.04395,108260.0,108250.0,0.17263936]
[1761181938726,0.04395,108260.0,108250.0,0.38390978]
[1761181939226,0.04395,108260.0,108250.0,0.36073412]
[1761181939227,0.05729,108260.0,108250.0,0.36073412]
[1761181939627,0.04395,108260.0,108250.0,0.36073412]
[1761181940425,0.04395,108260.0,108250.0,0.38383728]
[1761181941722,0.04395,108260.0,108250.0,0.29147358]
[1761181942030,0.05729,108260.0,108250.0,0.27806358]
[1761181942323,0.04395,108260.0,108250.0,0.26837042]
[1761181942526,0.05766,108260.0,108250.0,0.36073852]
[1761181943823,0.04395,108260.0,108250.0,0.36073852]
[1761181944523,0.05772,108260.0,108250.0,0.26837042]
[1761181944723,0.05772,108260.0,108250.0,0.25496042]
[1761181944925,0.26899042,108260.0,108250.0,0.04369]
[1761181945129,0.0581,108250.0,108240.0,0.1512153]
[1761181945423,0.04433,108250.0,108240.0,0.38559916]
[1761181946418,0.04433,108250.0,108240.0,0.38659916]
[1761181948926,0.04433,108250.0,108240.0,0.17532874]
[1761181949128,0.04433,108250.0,108240.0,0.38659916]
[1761181950727,0.25560042,108260.0,108250.0,0.1513981]
[1761181950932,0.04433,108260.0,108250.0,0.38578196]
[1761181952135,0.04433,108260.0,108250.0,0.08214344]
[1761181952334,0.04433,108260.0,108250.0,0.29341386]
[1761181952533,0.25560042,108260.0,108250.0,0.29341386]
[1761181953033,0.02148,108260.0,108250.0,0.38578196]
[1761181953232,0.12366994,108280.0,108270.0,0.05903]
[1761181953432,0.60938042,108280.0,108270.0,0.27030042]
[1761181953935,0.59604042,108280.0,108270.0,0.05903]
[1761181954141,0.0581,108270.0,108260.0,0.04543]
[1761181954330,0.29937042,108270.0,108260.0,0.04543]
[1761181954638,0.0581,108260.0,108250.0,0.04543]
[1761181954838,0.59977042,108260.0,108250.0,0.04543]
[1761181955841,0.59977042,108260.0,108250.0,0.05903]
[1761181956136,0.10261994,108280.0,108250.0,0.3858102]
[1761181956340,0.37465,108260.0,108250.0,0.17453978]
[1761181957439,0.37465,108260.0,108250.0,0.3858102]
[1761181957843,0.33032,108260.0,108250.0,0.3858102]
[1761181958040,0.04433,108270.0,108260.0,0.05903]
[1761181958338,0.37457,108270.0,108260.0,0.27030042]
[1761181958535,0.37457,108270.0,108260.0,0.36266002]
[1761181958740,0.37457,108270.0,108260.0,0.38579841]
[1761181959244,0.37461,108270.0,108260.0,0.38579841]
[1761181959440,0.59965042,108270.0,108260.0,0.06856839]
[1761181960237,0.59965042,108270.0,108260.0,0.08216839]
[1761181960238,0.25560042,108270.0,108260.0,0.08216839]
[1761181960440,0.0005,108300.0,108290.0,0.151364]
[1761181960747,0.02628,108310.0,108300.0,0.1513555]
[1761181960941,0.37056546,108310.0,108300.0,0.38574202]
[1761181961137,0.03924546,108310.0,108300.0,0.39940009]
[1761181961342,0.01776546,108310.0,108300.0,0.39940009]
[1761181961644,0.63442241,108320.0,108310.0,0.137747]
[1761181961843,0.96582241,108320.0,108310.0,0.36267549]
[1761181962044,0.63442241,108320.0,108310.0,0.38575209]
[1761181962541,0.65590241,108320.0,108310.0,0.38575209]
[1761181962731,0.63442241,108320.0,108310.0,0.17448167]
[1761181962935,0.0005,108450.0,108400.0,0.0136]
[1761181963134,0.46108242,108460.0,108450.0,0.0921978]
[1761181963336,0.46108242,108460.0,108450.0,0.93186546]
[1761181963337,0.01377,108460.0,108450.0,0.93186546]
[1761181963536,0.30484872,108460.0,108450.0,0.72558788]
[1761181963742,0.63976872,108460.0,108450.0,0.59385635]
[1761181964044,0.30484872,108460.0,108450.0,0.57862079]
[1761181964344,0.68174995,108460.0,108450.0,0.61828845]
[1761181964539,0.68174995,108460.0,108450.0,0.17862079]
[1761181964839,1.53818319,108460.0,108450.0,0.30393274]
[1761181965140,0.06732,108440.0,108430.0,0.25585773]
[1761181965443,0.82096185,108440.0,108430.0,0.0241836]
[1761181965655,1.22096185,108440.0,108420.0,0.0241836]
[1761181965839,0.80543242,108430.0,108420.0,0.0241836]
[1761181966036,0.80543242,108430.0,108410.0,0.0241836]
[1761181966037,0.0581,108420.0,108410.0,0.0241836]
[1761181966235,0.47496242,108420.0,108400.0,0.0241836]
[1761181966433,0.0581,108400.0,108390.0,0.0241836]
[1761181966642,0.4581,108400.0,108380.0,0.00471865]
[1761181966838,0.80871185,108390.0,108380.0,0.00471865]
[1761181967043,0.46319185,108390.0,108380.0,0.00471865]
[1761181967241,0.04433,108390.0,108380.0,0.49697605]
[1761181967447,0.04433,108390.0,108380.0,0.52115965]
[1761181967743,0.0581,108400.0,108390.0,0.001]
[1761181967946,0.47696185,108400.0,108390.0,0.31308273]
[1761181968137,0.47696185,108400.0,108390.0,0.71308273]
[1761181968138,0.40382,108400.0,108390.0,0.71308273]
[1761181968338,0.40382,108400.0,108390.0,0.4]
[1761181968539,0.47696185,108400.0,108390.0,0.0922489]
[1761181968847,0.0581,108400.0,108390.0,0.11637946]
[1761181969037,0.28786,108400.0,108390.0,0.0922489]
[1761181969237,0.28786,108400.0,108390.0,0.11735667]
[1761181969543,0.70472185,108400.0,108390.0,0.02510777]
[1761181969737,0.47496185,108400.0,108390.0,0.02510777]
[1761181969937,0.47496185,108400.0,108390.0,0.11735717]
[1761181970137,0.82044185,108400.0,108390.0,0.11735717]
[1761181970546,0.40558,108400.0,108390.0,0.11735717]
[1761181970745,0.0601,108400.0,108390.0,0.2449416]
[1761181970948,1.45407568,108400.0,108390.0,0.02510777]
[1761181971139,1.22024185,108400.0,108390.0,0.003]
[1761181971338,0.47496185,108400.0,108390.0,0.003]
[1761181971540,0.82040185,108400.0,108390.0,0.003]
[1761181971747,0.82040185,108400.0,108390.0,0.002]
[1761181971943,0.40353943,108400.0,108390.0,0.002]
[1761181972138,1.22032185,108400.0,108380.0,0.02882642]
[1761181972338,0.46319185,108390.0,108380.0,0.00471865]
[1761181972647,0.80851185,108390.0,108380.0,0.02882642]
[1761181973051,0.80851185,108390.0,108380.0,0.00471865]
[1761181973639,0.80851185,108390.0,108380.0,0.02880652]
[1761181973841,0.46319185,108390.0,108380.0,0.02880652]
[1761181974037,0.46319185,108390.0,108380.0,0.74089945]
[1761181974038,0.04433,108390.0,108380.0,0.74089945]
[1761181974240,0.06878,108400.0,108390.0,0.0922506]
[1761181974443,0.41798,108400.0,108380.0,0.54601766]
[1761181974752,0.63781383,108400.0,108390.0,0.02407328]
[1761181974943,0.41597943,108400.0,108390.0,0.02407328]
[1761181975248,0.83284185,108400.0,108380.0,0.02879193]
[1761181975447,0.47587185,108390.0,108380.0,0.02879193]
[1761181975937,0.87587185,108390.0,108380.0,0.02879193]
[1761181977138,0.87587185,108390.0,108380.0,0.07484537]
[1761181977743,0.87987185,108390.0,108380.0,0.07484537]
[1761181979047,1.22443185,108390.0,108380.0,0.07484537]
[1761181981941,1.47426568,108390.0,108380.0,0.05077209]
[1761181982242,1.47426568,108390.0,108380.0,2.09e-06]
[1761181982448,1.05740326,108390.0,108380.0,2.09e-06]
[1761181982647,1.47426568,108390.0,108380.0,2.09e-06]
[1761181983248,1.47437549,108390.0,108380.0,2.09e-06]
[1761181983445,0.03584,108360.0,108350.0,0.14062657]
[1761181983651,1.26396588,108360.0,108350.0,0.14062657]
[1761181983955,1.60755102,108360.0,108350.0,0.14062657]
[1761181984154,1.26375102,108360.0,108350.0,0.04834217]
[1761181984355,1.82726485,108360.0,108350.0,0.04834217]
[1761181984555,1.82726485,108360.0,108340.0,0.00461489]
[1761181984754,1.26168645,108360.0,108350.0,0.003]
[1761181985157,1.60743102,108360.0,108350.0,0.003]
[1761181985348,1.60843102,108360.0,108350.0,0.012]
[1761181985747,1.60843102,108360.0,108350.0,0.009]
[1761181987056,1.26475102,108360.0,108350.0,0.009]
[1761181987355,1.26475102,108360.0,108350.0,0.4922845]
[1761181987356,0.92200645,108360.0,108350.0,0.4922845]
[1761181987856,0.92200645,108360.0,108350.0,0.15767371]
[1761181987857,1.60895159,108360.0,108350.0,0.15767371]
[1761181988054,1.61095102,108360.0,108350.0,0.15767371]
[1761181988249,1.60895159,108360.0,108350.0,0.15767371]
[1761181989163,1.60895159,108360.0,108350.0,0.0922845]
[1761181989456,1.60895159,108360.0,108350.0,0.15718688]
[1761181990157,1.61095102,108360.0,108350.0,0.0922845]
[1761181990458,1.61095102,108360.0,108350.0,0.15729904]
[1761181991159,1.61095102,108360.0,108350.0,0.0922845]
[1761181992557,2.01095102,108360.0,108340.0,0.08635141]
[1761181992860,0.80275457,108350.0,108340.0,4.89e-06]
[1761181993062,0.83528443,108350.0,108340.0,4.89e-06]
[1761181993262,0.83528443,108350.0,108300.0,0.17867651]
[1761181993263,0.05701,108310.0,108300.0,0.17867651]
[1761181993557,0.38487922,108310.0,108300.0,0.09693999]
[1761181993754,0.72815517,108310.0,108300.0,0.09693999]
[1761181994355,0.72825302,108310.0,108300.0,0.12367683]
[1761181994556,0.72925302,108310.0,108300.0,0.13767683]
[1761181994857,0.72925302,108310.0,108300.0,0.13768053]
[1761181995052,0.72925302,108310.0,108300.0,0.13568053]
[1761181995247,0.72925302,108310.0,108300.0,0.16732121]
[1761181995452,0.72925302,108310.0,108300.0,0.18079354]
[1761181996562,0.72889302,108310.0,108300.0,0.18079354]
[1761181996762,0.72889302,108310.0,108300.0,0.14815286]
[1761181997153,0.72889302,108310.0,108300.0,0.18076488]
[1761181997962,0.72889302,108310.0,108300.0,0.14815286]
[1761181998153,0.72877302,108310.0,108300.0,0.14815286]
[1761181999163,0.73077245,108310.0,108300.0,0.14815286]
[1761181999755,0.73077245,108310.0,108300.0,0.05582576]
[1761182000453,0.73077245,108310.0,108300.0,0.14815136]
[1761182000864,0.73077245,108310.0,108300.0,0.05582576]
[1761182004564,0.06358,108290.0,108280.0,0.03261202]
[1761182004761,0.06358,108270.0,108260.0,0.15698872]
[1761182004958,0.40502,108270.0,108260.0,0.15698872]
[1761182005159,0.74829595,108270.0,108260.0,0.15698872]
[1761182005366,0.74840277,108270.0,108260.0,0.09203032]
[1761182005567,0.74840277,108270.0,108260.0,0.0594183]
[1761182005966,0.7504022,108270.0,108260.0,0.0320183]
[1761182006468,0.7504022,108270.0,108260.0,0.0340183]
[1761182006765,0.7504022,108270.0,108260.0,0.0046183]
[1761182006958,0.7504022,108270.0,108260.0,0.0056183]
[1761182006959,0.76318341,108270.0,108260.0,0.0056183]
[1761182007159,0.7504022,108270.0,108260.0,0.0056183]
[1761182008068,0.7504022,108270.0,108260.0,0.097978]
[1761182008365,0.4089622,108270.0,108260.0,0.097978]
[1761182008571,0.40464682,108270.0,108260.0,0.552778]
[1761182009470,0.06368682,108270.0,108260.0,0.552778]
[1761182009664,0.40468682,108270.0,108260.0,0.552778]
[1761182010169,0.40452682,108270.0,108260.0,0.552778]
[1761182011270,0.06368682,108270.0,108260.0,0.552778]
[1761182011572,0.40448682,108270.0,108260.0,0.552778]
[1761182014264,0.00010682,108270.0,108260.0,0.567208]
[1761182014470,0.34046682,108270.0,108260.0,0.59982002]
[1761182014671,0.40404682,108270.0,108260.0,0.6016506]
[1761182015569,0.34034682,108270.0,108260.0,0.6016506]
[1761182015871,0.37263682,108270.0,108260.0,0.6016506]
[1761182016070,0.40392682,108270.0,108260.0,0.6016506]
[1761182016469,0.40392682,108270.0,108260.0,0.63891807]
[1761182016470,0.39491844,108270.0,108260.0,0.63891807]
[1761182017572,0.39498697,108270.0,108260.0,0.63891807]
[1761182018058,0.40352853,108270.0,108260.0,0.63891807]
[1761182019371,0.40344853,108270.0,108260.0,0.63891807]
[1761182019573,6.853e-05,108270.0,108260.0,0.63891807]
[1761182019965,6.853e-05,108270.0,108260.0,0.59004547]
[1761182020165,0.33966853,108270.0,108260.0,0.59004547]
[1761182020469,6.853e-05,108270.0,108260.0,0.59004547]
[1761182021066,0.33958853,108270.0,108260.0,0.59004547]
[1761182021759,6.853e-05,108270.0,108260.0,0.59004547]
[1761182022163,0.33942853,108270.0,108260.0,0.59004547]
[1761182022373,0.33938853,108270.0,108260.0,0.65521162]
[1761182022572,0.33934853,108270.0,108260.0,0.65521162]
[1761182022776,6.853e-05,108270.0,108260.0,0.65521162]
[1761182022963,0.33934853,108270.0,108260.0,0.65521162]
[1761182023274,0.33930853,108270.0,108260.0,0.65521162]
[1761182025265,6.853e-05,108270.0,108260.0,0.59004547]
[1761182025574,0.8478,108290.0,108280.0,0.1471426]
[1761182025774,1.52999595,108290.0,108280.0,0.56778976]
[1761182026074,1.19307538,108290.0,108280.0,0.56778976]
[1761182026274,1.53195538,108290.0,108280.0,0.56778976]
[1761182026666,1.53201087,108290.0,108280.0,0.56778976]
[1761182026868,1.53201087,108290.0,108280.0,0.56878976]
[1761182027064,1.19913087,108290.0,108280.0,0.56878976]
[1761182027481,1.53785087,108290.0,108280.0,0.56878976]
[1761182027869,1.54085087,108290.0,108280.0,0.56878976]
[1761182028373,1.53485087,108290.0,108280.0,0.56778976]
[1761182028571,5.549e-05,108290.0,108280.0,0.97578976]
[1761182028776,0.077,108320.0,108310.0,0.1471171]
[1761182028973,0.42027595,108320.0,108310.0,0.55137618]
[1761182029269,0.0048,108350.0,108330.0,0.1197]
[1761182029270,0.41612,108340.0,108330.0,0.1197]
[1761182029475,0.41612,108340.0,108330.0,0.20347002]
[1761182029683,0.75943595,108340.0,108330.0,0.53496692]
[1761182029977,0.42227538,108340.0,108330.0,0.53496692]
[1761182030173,0.06838,108350.0,108340.0,0.1470915]
[1761182030373,0.03709,108350.0,108340.0,0.21970214]
[1761182030569,0.03908943,108350.0,108340.0,0.17077566]
[1761182030873,0.03908943,108350.0,108340.0,0.21969694]
[1761182031068,0.00280973,108350.0,108340.0,0.61969694]
[1761182031275,3e-08,108350.0,108340.0,1.03429165]
[1761182031474,3e-08,108350.0,108340.0,0.23610018]
[1761182031775,0.40885541,108350.0,108340.0,0.53138771]
[1761182032078,0.40885541,108350.0,108340.0,0.53656176]
[1761182032264,0.40885541,108350.0,108340.0,0.48770971]
[1761182032470,0.40885541,108350.0,108340.0,0.45513566]
[1761182032671,0.74837541,108350.0,108340.0,0.11597566]
[1761182032970,0.74837541,108350.0,108340.0,0.12497566]
[1761182033278,0.74937541,108350.0,108340.0,0.12497566]
[1761182033581,0.74937541,108350.0,108340.0,0.19676566]
[1761182034465,0.74937541,108350.0,108340.0,0.19076566]
[1761182034671,0.74837541,108350.0,108340.0,0.18876566]
[1761182036675,0.74837541,108350.0,108340.0,0.11697566]
[1761182038583,0.74837541,108350.0,108340.0,0.11597566]
[1761182038971,1.14837541,108350.0,108340.0,0.02368416]
[1761182039176,0.07123,108330.0,108320.0,0.0923037]
[1761182039475,0.41194943,108330.0,108320.0,0.11589032]
[1761182039675,1.15522538,108330.0,108320.0,0.02358662]
[1761182040275,0.07123,108310.0,108300.0,0.0923213]
[1761182040479,0.07123,108310.0,108300.0,0.11592776]
[1761182040480,0.41202943,108310.0,108300.0,0.11592776]
[1761182040696,0.75530538,108310.0,108300.0,0.11592776]
[1761182040873,0.75530538,108310.0,108300.0,0.18771776]
[1761182041070,0.75522538,108310.0,108300.0,0.20036594]
[1761182041276,0.03437,108310.0,108300.0,0.60036594]
[1761182041579,0.09029,108320.0,108310.0,0.1641071]
[1761182041777,0.01906,108340.0,108330.0,0.0923001]
[1761182041988,0.09029,108340.0,108330.0,0.51918429]
[1761182042283,0.28852,108340.0,108330.0,0.91918429]
[1761182043081,3e-08,108350.0,108340.0,0.0922915]
[1761182043284,0.68407541,108350.0,108340.0,0.18767879]
[1761182043484,0.68407541,108350.0,108340.0,0.2120586]
[1761182043687,0.33880003,108350.0,108340.0,0.2120586]
[1761182044778,0.33876003,108350.0,108340.0,0.43167741]
[1761182044978,3e-08,108350.0,108340.0,0.43167741]
[1761182045288,0.03344003,108350.0,108340.0,0.44440741]
[1761182045983,3e-08,108350.0,108340.0,0.44440741]
[1761182046393,3e-08,108350.0,108340.0,0.84440741]
[1761182046788,3e-08,108350.0,108340.0,0.45260165]
[1761182047085,3e-08,108350.0,108340.0,0.5014537]
[1761182047481,0.05422,108380.0,108370.0,0.164056]
[1761182047687,0.05422,108380.0,108370.0,0.40725707]
[1761182047688,0.17479943,108380.0,108370.0,0.40725707]
[1761182047988,0.07603,108390.0,108380.0,0.1640475]
[1761182048178,0.07802943,108390.0,108380.0,0.40724857]
[1761182048384,0.41435,108390.0,108380.0,0.40724857]
[1761182048586,0.0048,108390.0,108380.0,0.83658822]
[1761182049290,0.04617,108390.0,108380.0,0.83261822]
[1761182049586,0.04917,108390.0,108380.0,0.83261822]
[1761182049789,0.08603,108390.0,108380.0,0.83261822]
[1761182049991,0.08603,108390.0,108380.0,0.40824857]
[1761182050192,0.08802943,108390.0,108380.0,0.40824857]
[1761182051191,0.08802943,108390.0,108380.0,0.43261822]
[1761182051689,0.08802943,108390.0,108380.0,0.21299941]
[1761182051893,0.08802943,108390.0,108380.0,0.43261822]
[1761182052590,0.08802943,108390.0,108380.0,0.38466631]
[1761182052986,0.0148,108390.0,108380.0,0.78963631]
[1761182053384,0.0148,108390.0,108380.0,0.81318713]
[1761182053583,0.01,108390.0,108380.0,0.81318713]
[1761182053788,0.0660003,108490.0,108440.0,0.04451259]
[1761182053789,0.91871,108450.0,108440.0,0.04451259]
[1761182053989,0.63450595,108450.0,108440.0,0.04451259]
[1761182054189,0.41450595,108450.0,108440.0,0.04251316]
[1761182054397,0.75230595,108450.0,108440.0,0.04251316]
[1761182055708,0.76526595,108450.0,108440.0,0.04351316]
[1761182056291,0.35627595,108450.0,108440.0,0.22801956]
[1761182056489,0.35627595,108450.0,108440.0,0.44763837]
[1761182056490,0.76538595,108450.0,108440.0,0.44763837]
[1761182056690,0.39064595,108450.0,108440.0,0.44763837]
[1761182056893,0.72852595,108450.0,108440.0,0.44763837]
[1761182057194,0.009,108450.0,108440.0,0.22701956]
[1761182057493,0.41803,108450.0,108440.0,0.42612837]
[1761182057686,0.81450595,108450.0,108440.0,0.06603482]
[1761182057886,0.81950595,108450.0,108440.0,0.04251316]
[1761182058088,0.81950595,108450.0,108440.0,0.27467316]
[1761182058395,0.41950595,108450.0,108440.0,0.27467316]
[1761182058594,0.41950595,108450.0,108440.0,0.43866956]
[1761182058799,0.41950595,108450.0,108440.0,0.34646316]
[1761182058997,0.41950595,108450.0,108440.0,0.27467316]
[1761182059986,0.41950595,108450.0,108440.0,0.38031316]
[1761182060890,0.41950595,108450.0,108440.0,0.04251316]
[1761182061090,0.81950595,108450.0,108440.0,0.38015316]
[1761182061301,0.81950595,108450.0,108440.0,0.04251316]
[1761182062989,0.41950595,108450.0,108440.0,0.33325197]
[1761182063205,0.41950595,108450.0,108440.0,0.42545837]
[1761182063589,0.41950595,108450.0,108440.0,0.33325197]
[1761182064193,0.75722595,108450.0,108440.0,0.33325197]
[1761182064394,0.75722595,108450.0,108440.0,0.04251316]
[1761182064595,1.15722595,108450.0,108440.0,0.04251316]
[1761182064799,1.15714595,108450.0,108440.0,0.04251316]
[1761182066495,0.0205,108440.0,108400.0,0.38352461]
[1761182066698,0.06962,108410.0,108400.0,0.40347461]
[1761182067306,0.06962,108410.0,108400.0,0.38352461]
[1761182067307,0.75033279,108410.0,108400.0,0.38352461]
[1761182067506,0.75033279,108410.0,108400.0,0.1639058]
[1761182067706,0.75033279,108410.0,108400.0,0.1639104]
[1761182067899,0.75133279,108410.0,108400.0,0.1729104]
[1761182068302,0.75133279,108410.0,108400.0,0.1739104]
[1761182068503,0.75133279,108410.0,108400.0,0.10162]
[1761182068809,0.75133279,108410.0,108400.0,0.01]
[1761182069306,0.75133279,108410.0,108400.0,0.001]
[1761182069307,0.75033279,108410.0,108400.0,0.001]
[1761182069707,0.09012,108400.0,108390.0,0.38353351]
[1761182070006,0.43339279,108400.0,108390.0,0.1639147]
[1761182070409,0.43339279,108400.0,108390.0,0.07167]
[1761182070611,0.43339279,108400.0,108390.0,0.163919]
[1761182071006,0.83339279,108400.0,108380.0,0.13282048]
[1761182071210,0.75009279,108390.0,108380.0,0.40810929]
[1761182071805,0.75009279,108390.0,108380.0,0.07628318]
[1761182072000,0.75009279,108390.0,108380.0,0.00461318]
[1761182072705,1.15009279,108390.0,108380.0,0.02827569]
[1761182074003,1.15409279,108390.0,108380.0,0.02827569]
[1761182075309,1.15009279,108390.0,108380.0,0.02827569]
[1761182075516,1.15509279,108390.0,108380.0,0.02827569]
[1761182075907,1.15009279,108390.0,108380.0,0.02827569]
[1761182076107,1.15409279,108390.0,108380.0,0.02827569]
[1761182076709,1.3837116,108390.0,108380.0,0.02827569]
[1761182076907,0.09012,108380.0,108370.0,0.02436965]
[1761182077214,0.43339279,108380.0,108360.0,0.02436965]
[1761182077411,0.74997279,108370.0,108360.0,0.02436965]
[1761182077711,0.41289279,108370.0,108360.0,0.15259415]
[1761182077912,0.74989279,108370.0,108360.0,0.31565846]
[1761182078102,0.74989279,108370.0,108360.0,0.02436965]
[1761182079115,0.74989279,108370.0,108360.0,0.11664405]
[1761182079611,0.75189279,108370.0,108360.0,0.11764405]
[1761182079910,0.41489279,108370.0,108360.0,0.02536965]
[1761182080212,0.75197279,108370.0,108360.0,0.11764405]
[1761182080718,0.75597279,108370.0,108360.0,0.11664405]
[1761182081714,0.75585279,108370.0,108360.0,0.0922744]
[1761182082120,0.41889279,108370.0,108360.0,0.0922744]
[1761182082419,0.75561279,108370.0,108360.0,0.0922744]
[1761182082621,0.75561279,108370.0,108350.0,0.40793586]
[1761182082822,0.41289279,108360.0,108350.0,0.40793586]
[1761182083714,0.74945279,108360.0,108350.0,0.40793586]
[1761182083918,0.74945279,108360.0,108350.0,0.40993586]
[1761182084418,0.74941279,108360.0,108350.0,0.80993586]
[1761182084815,0.74941279,108360.0,108350.0,0.81093586]
[1761182085419,0.41289279,108360.0,108350.0,0.80993586]
[1761182085613,0.43339279,108360.0,108350.0,0.002]
[1761182085812,0.43339279,108360.0,108350.0,0.33864]
[1761182086010,0.43339279,108360.0,108350.0,0.33764]
[1761182086215,0.43339279,108360.0,108350.0,0.33964]
[1761182086419,0.43339279,108360.0,108350.0,0.33864]
[1761182087021,0.43339279,108360.0,108350.0,0.33664]
[1761182087823,0.43339279,108360.0,108340.0,0.3881949]
[1761182088024,0.09012,108360.0,108350.0,0.3366]
[1761182088625,0.43339279,108360.0,108350.0,0.3366]
[1761182088821,0.85605118,108360.0,108340.0,0.00461489]
[1761182089123,0.41289279,108350.0,108340.0,0.43322639]
[1761182089309,0.41289279,108350.0,108340.0,0.34093489]
[1761182089510,0.41289279,108350.0,108340.0,0.00461489]
[1761182089717,0.41289279,108350.0,108340.0,0.34097489]
[1761182090617,0.41289279,108350.0,108340.0,0.46921639]
[1761182090818,0.41289279,108350.0,108340.0,0.50493639]
[1761182091517,0.41289279,108350.0,108340.0,0.76898146]
[1761182091920,0.41289279,108350.0,108340.0,0.76798146]
[1761182092113,0.41289279,108350.0,108340.0,0.76998146]
[1761182093233,0.41289279,108350.0,108340.0,0.77198146]
[1761182093422,0.35686,108380.0,108360.0,0.1782413]
[1761182093423,0.06302,108370.0,108360.0,0.1782413]
[1761182093728,0.40629279,108370.0,108360.0,0.73382011]
[1761182093930,0.40629279,108370.0,108360.0,0.75730299]
[1761182094718,0.40629279,108370.0,108360.0,0.75730609]
[1761182095727,0.40829279,108370.0,108360.0,0.74182321]
[1761182096034,0.40829279,108370.0,108360.0,0.78976865]
[1761182096522,0.002,108370.0,108360.0,1.18976865]
[1761182096724,0.0205,108400.0,108380.0,0.0922521]
[1761182096930,0.40629279,108390.0,108380.0,0.08935463]
[1761182097121,0.40629279,108390.0,108380.0,0.42575463]
[1761182097321,0.40629279,108390.0,108380.0,0.51801203]
[1761182097731,0.41868855,108390.0,108380.0,0.51801203]
[1761182098234,0.40629279,108390.0,108380.0,0.5424585]
[1761182098929,0.41029279,108390.0,108380.0,0.5424585]
[1761182099831,0.40629279,108390.0,108380.0,0.4502011]
[1761182100131,0.40629279,108390.0,108380.0,0.3853611]
[1761182100323,0.40629279,108390.0,108380.0,0.4512011]
[1761182100524,0.40629279,108390.0,108380.0,0.5434585]
[1761182101229,0.40629279,108390.0,108380.0,0.5632685]
[1761182101430,0.40629279,108390.0,108380.0,0.5622685]
[1761182101431,0.41029279,108390.0,108380.0,0.5622685]
[1761182101632,0.41029279,108390.0,108380.0,0.78188731]
[1761182101840,0.004,108390.0,108380.0,1.21446136]
[1761182102130,0.004,108390.0,108380.0,1.20629289]
[1761182102529,0.004,108390.0,108380.0,1.23892426]
[1761182102726,0.004,108390.0,108380.0,1.20629289]
[1761182102931,0.06302,108420.0,108410.0,0.1580651]
[1761182103125,0.08052876,108430.0,108420.0,0.1781934]
[1761182103319,0.08052876,108430.0,108420.0,0.39781221]
[1761182103622,0.08052876,108430.0,108420.0,0.1781934]
[1761182103623,0.41109279,108430.0,108420.0,0.1781934]
[1761182103925,0.41109279,108430.0,108420.0,0.08597]
[1761182104127,0.41109279,108430.0,108420.0,0.1781934]
[1761182104519,0.06302,108410.0,108400.0,0.06584]
[1761182104735,0.06302,108410.0,108400.0,0.35944987]
[1761182105033,0.80629279,108410.0,108400.0,0.02352987]
[1761182105532,0.80560482,108410.0,108400.0,0.02352987]
[1761182105832,0.08274,108400.0,108390.0,0.33596]
[1761182106024,0.42601279,108400.0,108390.0,0.45174079]
[1761182106423,0.42601279,108400.0,108390.0,0.48558079]
[1761182107232,0.42601279,108400.0,108390.0,0.39333189]
[1761182107933,0.42601279,108400.0,108390.0,0.05737189]
[1761182108135,0.42601279,108400.0,108360.0,0.16125625]
[1761182108136,1.15989112,108400.0,108360.0,0.16125625]
[1761182108328,0.06302,108370.0,108360.0,0.48568075]
[1761182108528,0.06302,108370.0,108360.0,0.05736715]
[1761182108731,0.09856899,108370.0,108360.0,0.05736715]
[1761182109031,0.09856899,108370.0,108360.0,0.03384]
[1761182109425,0.09856899,108370.0,108360.0,0.1261145]
[1761182109627,0.09856899,108370.0,108360.0,0.03384]
[1761182109833,0.09856899,108370.0,108360.0,0.1581145]
[1761182110435,0.09856899,108370.0,108360.0,0.06584]
[1761182110740,0.09856899,108370.0,108360.0,0.008]
[1761182110934,0.09856899,108370.0,108360.0,0.011]
[1761182111135,0.11133883,108370.0,108360.0,0.011]
[1761182111733,0.08274,108400.0,108390.0,0.03384]
[1761182112036,0.08274,108400.0,108360.0,0.06784]
[1761182112037,0.08274,108380.0,108360.0,0.06784]
[1761182112235,0.33822,108380.0,108360.0,0.1601143]
[1761182112430,0.09856899,108370.0,108360.0,0.002]
[1761182113032,0.49856899,108370.0,108360.0,0.002]
[1761182113234,0.05238,108360.0,108350.0,0.1261194]
[1761182113443,0.45480899,108360.0,108350.0,0.48927052]
[1761182114037,0.41926,108360.0,108350.0,0.88927052]
[1761182114339,0.06302,108370.0,108360.0,0.1581067]
[1761182114540,0.09856899,108370.0,108360.0,0.1581067]
[1761182114736,0.08274,108400.0,108390.0,0.1580889]
[1761182114939,0.11828899,108400.0,108390.0,0.03384]
[1761182115133,0.11828899,108400.0,108380.0,0.092253]
[1761182115134,0.11828899,108400.0,108380.0,0.06584]
[1761182115439,0.09856899,108390.0,108380.0,0.1580921]
[1761182116345,0.09856899,108390.0,108370.0,0.42341192]
[1761182116346,0.08274,108380.0,108370.0,0.1581013]
[1761182116640,0.11828899,108380.0,108370.0,0.1581013]
[1761182117644,0.11828899,108380.0,108370.0,0.49125242]
[1761182118737,0.11828899,108380.0,108370.0,0.1601013]
[1761182118935,0.11828899,108380.0,108370.0,0.06784]
[1761182119139,0.11828899,108380.0,108370.0,0.03584]
[1761182119337,0.11828899,108380.0,108370.0,0.1281059]
[1761182119639,0.11828899,108380.0,108370.0,0.03584]
[1761182119839,0.11828899,108380.0,108370.0,0.003]
[1761182120045,0.51828899,108380.0,108370.0,0.003]
[1761182120247,0.51828899,108380.0,108370.0,0.004]
[1761182120549,0.51828899,108380.0,108370.0,0.003]
[1761182120746,0.11828899,108380.0,108370.0,0.1611059]
[1761182121137,0.11828899,108380.0,108370.0,0.1601059]
[1761182121344,0.11828899,108380.0,108370.0,0.1581059]
[1761182121738,0.11828899,108380.0,108370.0,0.06584]
[1761182121938,0.11828899,108380.0,108360.0,0.15811]
[1761182122138,0.09856899,108370.0,108360.0,0.18092928]
[1761182122339,0.09856899,108370.0,108360.0,0.18093582]
[1761182122739,0.43476899,108370.0,108360.0,0.18093582]
[1761182123548,0.43476899,108370.0,108360.0,0.18393582]
[1761182124044,0.01972,108380.0,108360.0,0.58393582]
[1761182124236,0.01972,108380.0,108370.0,0.155496]
[1761182124237,0.43800899,108380.0,108370.0,0.155496]
[1761182124438,0.43800899,108380.0,108370.0,0.17832182]
[1761182126251,0.43800899,108380.0,108370.0,0.02282582]
[1761182126752,0.83800899,108380.0,108370.0,0.11809182]
[1761182127144,0.83800899,108380.0,108370.0,0.11909182]
[1761182127447,0.83800899,108380.0,108370.0,0.02582582]
[1761182127648,0.80246,108380.0,108370.0,0.02582582]
[1761182127847,0.83800899,108380.0,108370.0,0.02482582]
[1761182128050,0.83800899,108380.0,108370.0,0.11709182]